[Event "13th Rheinland-Pfalz-Open 2023"]
[Site "Neuwied-Engers"]
[Date "2023.06.09"]
[Round "3.1"]
[White "Peng, Li Min"]
[Black "Kettler, Ilija Jonas"]
[Result "1-0"]
[Annotator "TA"]
[ECO "D02"]
[WhiteElo "2530"]
[BlackElo "2106"]
[PlyCount "67"]
[EventDate "2023.01.12"]
[EventType "swiss"]
[EventCountry "GER"]
[SourceTitle "playchess.com"]
[Source "ChessBase"]
[SourceQuality "1"]
[TimeControl "40/5400+30:1800+30"]

{[%evp 11,67,0,0,-3,-5,-8,0,0,21,25,43,41,64,50,55,53,110,90,114,118,147,117,108,74,88,69,186,186,197,203,195,193,199,195,195,176,184,190,176,149,279,272,269,129,133,133,135,129,128,53,131,114,300,275,337,326,323,294]} 1. d4 {[%emt 1:31:00]} d5 {[%emt 0:06:48]} 2. Bf4 {[%emt 0:00:00]} Nf6 {[%emt 0:00:11]} 3. e3 {[%emt 0:00:00]} e6 {[%emt 0:00:09]} 4. Nf3 {[%emt 0:00:00]} Bd6 {[%emt 0:00:25]} 5. Ne5 {[%emt 0:00:00]} O-O {[%emt 0:00:16]} 6. Nd2 {[%emt 0:00:00]} c5 {[%emt 0:01:09]} 7. c3 {[%emt 0:00:00] D02: 1 d4 d5 2 Nf3 sidelines, including 2...Nf6 3 g3 and 2...Nf6 3 Bf4.} Qc7 {[%emt 0:03:44] is cutting edge theory.} 8. Bd3 {[%emt 0:00:00]} Nc6 {[%emt 0:00:11][%cal Rc6e5]} 9. Ndf3 {[%emt 0:00:00] The position is equal.} Ne4 {[%emt 0:05:45]} 10. O-O {[%emt 0:00:00]} f6 {[%emt 0:32:08]} 11. Nxc6 {[%emt 0:00:00]} Bxf4 {[%emt 0:00:32]} 12. exf4 {[%emt 0:00:00][%cal Oc6e5]} Qxc6 {[%emt 0:00:31]} 13. Re1 {[%emt 0:00:00] [#]} Bd7 $146 {[%emt 0:04:37]} (13... b6 $14) ({Predecessor:} 13... c4 14. Bxe4 dxe4 15. Nd2 f5 16. f3 exf3 17. Qxf3 Qb5 18. Rab1 Qa4 19. a3 Rb8 {½-½ Rosen,E (2360)-Sachdev,T (2399) I'M Not A GM Speed Chess blitz 2022 (1.17)}) 14. Qc2 $16 {[%emt 0:00:00]} f5 {[%emt 0:02:03]} 15. Ne5 {[%emt 0:00:00]} Qc7 {[%emt 0:00:38]} 16. c4 {[%emt 0:00:00]} Rac8 {[%emt 0:12:34]} 17. cxd5 {[%emt 0:00:00]} (17. Rac1 {keeps more tension.} cxd4 18. cxd5 Qa5 19. Qe2) 17... exd5 {[%emt 0:00:51]} 18. f3 {[%emt 0:00:00]} Nf6 {[%emt 0:02:00] [#]} ({Better is} 18... cxd4 $14 19. Qb3 Nf6) 19. Nxd7 $1 $18 {[%emt 0:00:00][%mdl 64] Remove Defender} ({Don't play} 19. Bxf5 $6 Bxf5 20. Qxf5 cxd4 $16) 19... Nxd7 {[%emt 0:00:40]} 20. Bxf5 {[%emt 0:00:00]} cxd4 {[%emt 0:01:15]} 21. Bxh7+ {[%emt 0:00:00]} Kh8 {[%emt 0:00:08]} 22. Qxc7 {[%emt 0:00:00]} Rxc7 {[%emt 0:00:05]} 23. Bg6 {[%emt 0:00:00]} Rxf4 {[%emt 0:02:35] [#]} 24. h4 $1 {[%emt 0:00:00][%mdl 512]} Rc8 {[%emt 0:01:47]} 25. Rac1 {[%emt 0:00:00]} Rd8 {[%emt 0:01:21]} (25... Rxc1 $16 {was called for.} 26. Rxc1 Kg8) 26. Rc7 {[%emt 0:00:00][%cal Oc7d7] Hoping for Rxd7!} Nf8 {[%emt 0:00:18]} 27. h5 {[%emt 0:00:00]} (27. Bd3 $18) 27... Nxg6 $16 {[%emt 0:00:14]} 28. hxg6 {[%emt 0:00:00][%mdl 4096] Endgame KRR-KRR} Rf6 {[%emt 0:00:05]} 29. Rxb7 {[%emt 0:00:00] White is much more active.} Rxg6 {[%emt 0:01:05]} 30. Rxa7 {[%emt 0:00:00]} (30. Rd1 $16) 30... Rc8 {[%emt 0:00:06] [#]} (30... d3 $1 $14) 31. Re2 $1 {[%emt 0:00:00] Rd2 would be deadly.} d3 $2 {[%emt 0:00:05]} (31... Rc1+ $16 {is a better defense.} 32. Kf2 Rd1) 32. Rd2 $18 {[%emt 0:00:00] White has a decisive advantage.} Re6 {[%emt 0:02:30]} 33. Ra3 {[%emt 0:00:00]} ({Don't take} 33. Rxd3 Rc1+ 34. Kh2 Rh6+ 35. Kg3 Rg6+ 36. Kf4 Rc4+ 37. Ke3 Rxg2 $18) 33... Rc1+ {[%emt 0:00:30]} 34. Kf2 {[%emt 0:00:00] Weighted Error Value: White=0.12 (very precise) /Black=0.30} 1-0

[Event "13th Rheinland-Pfalz-Open 2023"]
[Site "Neuwied-Engers"]
[Date "2023.06.09"]
[Round "3.2"]
[White "Schild, Willi"]
[Black "Winterberg, Lukas"]
[Result "0-1"]
[Annotator "TA"]
[ECO "A47"]
[WhiteElo "2112"]
[BlackElo "2405"]
[PlyCount "46"]
[EventDate "2023.01.12"]
[EventType "swiss"]
[EventCountry "GER"]
[SourceTitle "playchess.com"]
[Source "ChessBase"]
[SourceQuality "1"]
[TimeControl "40/5400+30:1800+30"]

{[%evp 20,46,18,2,10,10,27,0,12,0,18,-95,-80,-183,-151,-200,-200,-200,-193,-200,-202,-255,-190,-302,-309,-633,-620,-762,-706]} 1. d4 {[%emt 0:00:35]} Nf6 {[%emt 0:00:13]} 2. Nf3 {[%emt 0:01:09]} c5 {[%emt 0:00:11]} 3. e3 {[%emt 0:02:03]} e6 {[%emt 0:00:12]} 4. Bd3 {[%emt 0:01:29]} b6 {[%emt 0:00:13]} 5. Qe2 {[%emt 0:02:46]} Bb7 {[%emt 0:00:21]} 6. Nbd2 {[%emt 0:01:22]} Nc6 {[%emt 0:01:58]} 7. c3 {[%emt 0:02:12]} Be7 {[%emt 0:00:57]} 8. O-O {[%emt 0:00:57]} O-O {[%emt 0:00:09]} 9. e4 {[%emt 0:02:25]} cxd4 {[%emt 0:00:44]} 10. Nxd4 {[%emt 0:02:09]} d6 {[%emt 0:02:24][%cal Bd7d6,Bd6e5,Be5d4][%mdl 32]} 11. f4 {[%emt 0:04:02]} Nxd4 {[%emt 0:01:51] A47: 1 d4 Nf6 2 Nf3 b6: Torre, London and Colle Systems.} 12. cxd4 {[%emt 0:00:52] [#]} Rc8 $146 {[%emt 0:01:51]} ({Predecessor:} 12... d5 13. e5 Ne4 14. Rd1 Nxd2 15. Bxd2 Qd7 16. Bc3 f5 17. Bb5 Bc6 18. Ba6 b5 19. Ba5 {1-0 Grigoryan,M (2077)-Briscoe,C (2273) Coulsdon-B 2007 (2)}) 13. Rf3 {[%emt 0:01:20]} e5 {[%emt 0:14:25] The position is equal.} 14. fxe5 {[%emt 0:05:17]} dxe5 {[%emt 0:01:39]} 15. Nb3 {[%emt 0:07:58]} (15. d5 $11) 15... exd4 $17 {[%emt 0:02:48] Black is more active.} 16. Rh3 {[%emt 0:01:13]} (16. Rf2 $17) 16... Re8 $1 $19 {[%emt 0:09:41][%cal Of6e4]} 17. e5 {[%emt 0:08:40] [#]} (17. Bd2 $17) 17... Bd6 $1 {[%emt 0:02:40][%mdl 576] Pin} 18. Bf4 {[%emt 0:01:38] [#]} Bxe5 $1 {[%emt 0:00:46][%mdl 512]} 19. Bxe5 {[%emt 0:02:22] Threatens to win with Rg3.} Qd5 {[%emt 0:01:27]} 20. Qd2 {[%emt 0:04:45] Bxf6 is the strong threat.} Rxe5 {[%emt 0:00:22]} 21. Rf1 {[%emt 0:00:15]} (21. Rh4 {might work better.}) 21... Rce8 {[%emt 0:01:02][%cal Oe5e2] Strongly threatening ...Re2!} 22. Rxf6 $2 {[%emt 0:01:38]} (22. Rhf3) 22... gxf6 {[%emt 0:01:04]} 23. Bxh7+ {[%emt 0:00:45]} Kf8 {[%emt 0:00:10] White did not feel at home in the position after the opening.   Weighted Error Value: White=1.04/Black=0.12 (very precise)} 0-1

[Event "13th Rheinland-Pfalz-Open 2023"]
[Site "Neuwied-Engers"]
[Date "2023.06.09"]
[Round "3.3"]
[White "Chassard, Cedric"]
[Black "Baerwinkel, Tobias"]
[Result "1-0"]
[Annotator "TA"]
[ECO "B51"]
[WhiteElo "2094"]
[BlackElo "2324"]
[PlyCount "51"]
[EventDate "2023.01.12"]
[EventType "swiss"]
[EventCountry "GER"]
[SourceTitle "playchess.com"]
[Source "ChessBase"]
[SourceQuality "1"]
[TimeControl "40/5400+30:1800+30"]

{[%evp 9,51,16,11,0,0,0,0,0,0,0,20,22,38,31,87,83,73,75,75,78,89,85,125,138,252,250,264,263,269,266,260,217,605,606,597,589,592,574,620,629,638,598,560,566]} 1. e4 {[%emt 0:00:04]} c5 {[%emt 0:00:20]} 2. Nf3 {[%emt 0:00:18]} d6 {[%emt 0:00:20]} 3. Bb5+ {[%emt 0:00:07]} Nd7 {[%emt 0:00:43]} 4. Ba4 {[%emt 0:00:11]} Ngf6 {[%emt 0:01:18]} 5. O-O {[%emt 0:00:20]} e6 {[%emt 0:00:27]} 6. d4 {[%emt 0:00:14] B51: Sicilian: Moscow Variation (3 Bb5+) without 3...Bd7.} cxd4 {[%emt 0:05:03]} 7. Qxd4 {[%emt 0:00:23]} Be7 {[%emt 0:01:52]} 8. c4 {[%emt 0:00:06] The position is equal.} O-O {[%emt 0:02:26]} 9. Nc3 {[%emt 0:00:51]} a6 {[%emt 0:01:57]} 10. Rd1 {[%emt 0:00:39][%cal Bf1d1,Bd1d6,Bd6c6][%mdl 32]} Qc7 {[%emt 0:04:10]} 11. Bxd7 {[%emt 0:03:57]} Bxd7 {[%emt 0:03:33] [#]} (11... Nxd7 $14 12. Bg5 f6) 12. Bf4 $1 $16 {[%emt 0:01:00]} Bc6 {[%emt 0:04:57] Strongly threatening ...e5.} 13. Bxd6 {[%emt 0:00:33] White is more active.} Bxd6 {[%emt 0:02:36]} 14. Qxd6 {[%emt 0:00:09]} Qxd6 {[%emt 0:05:10]} 15. Rxd6 {[%emt 0:00:08] [#]} Nxe4 $146 {[%emt 0:00:14] [#]} ({Predecessor:} 15... Bxe4 16. Ne5 Rfc8 17. Rad1 Bf5 18. f3 h5 19. R6d4 Kf8 20. g4 hxg4 21. fxg4 Bc2 {1-0 De Silva,L (2452)-Volokitin,A (2665) ChessKid Cup Play In blitz 2023 (9)}) 16. Rxc6 {[%emt 0:00:54][%mdl 64] And now Rc7 would win. Remove Defender} bxc6 {[%emt 0:00:06]} (16... Nxc3 $16 17. Rc7 Na4) 17. Nxe4 $18 {[%emt 0:00:06]} Rfd8 {[%emt 0:00:54]} 18. Nc5 {[%emt 0:02:41]} Rd6 {[%emt 0:02:14]} 19. Kf1 {[%emt 0:00:55]} f6 {[%emt 0:00:34]} 20. Ke2 {[%emt 0:00:21]} g5 $2 {[%emt 0:02:28]} (20... a5 21. b3 h5) 21. Ne4 {[%emt 0:00:24][%csl LRd6,LRf6] White is clearly winning.} Rdd8 {[%emt 0:00:17]} 22. Nxf6+ {[%emt 0:00:15]} Kg7 {[%emt 0:00:10]} 23. Ne4 {[%emt 0:00:28]} h6 {[%emt 0:00:27]} 24. Ne5 {[%emt 0:03:15]} Rac8 {[%emt 0:02:43]} 25. Rd1 {[%emt 0:02:47]} Rxd1 {[%emt 0:00:28]} 26. Kxd1 {Black got outplayed after the opening.   Weighted Error Value: White=0.05 (flawless) /Black=0.38} 1-0

[Event "13th Rheinland-Pfalz-Open 2023"]
[Site "Neuwied-Engers"]
[Date "2023.06.09"]
[Round "3.4"]
[White "Kotyk, Michael"]
[Black "Syrov, Arkadi"]
[Result "1-0"]
[Annotator "TA"]
[ECO "E51"]
[WhiteElo "2089"]
[BlackElo "2298"]
[PlyCount "33"]
[EventDate "2023.01.12"]
[EventType "swiss"]
[EventCountry "GER"]
[SourceTitle "playchess.com"]
[Source "ChessBase"]
[SourceQuality "1"]
[TimeControl "40/5400+30:1800+30"]

{[%evp 14,33,12,18,30,27,25,28,33,22,26,21,305,296,544,547,646,602,635,612,611,615]} 1. d4 {[%emt 0:00:20]} Nf6 {[%emt 0:00:10]} 2. c4 {[%emt 0:00:03]} e6 {[%emt 0:00:07]} 3. Nc3 {[%emt 0:00:08]} Bb4 {[%emt 0:00:06]} 4. e3 {[%emt 0:00:03]} O-O {[%emt 0:00:11]} 5. Bd2 {[%emt 0:00:02]} d5 {[%emt 0:01:16]} 6. Nf3 {[%emt 0:00:09]} c5 {[%emt 0:01:51]} 7. a3 {[%emt 0:00:09]} Bxc3 {[%emt 0:00:13]} 8. Bxc3 {[%emt 0:00:02]} Ne4 {[%emt 0:01:40] E51: Nimzo-Indian: Rubinstein: 4...0-0 5 Nf3 d5.} 9. Rc1 {[%emt 0:00:04]} b6 {[%emt 0:38:12]} 10. dxc5 {[%emt 0:09:29]} bxc5 {[%emt 0:00:49] White has an edge.} 11. Bd3 {[%emt 0:01:30]} Nxc3 {[%emt 0:05:34]} 12. Rxc3 {[%emt 0:00:20] [#] aiming for cxd5.} dxc4 $146 {[%emt 0:00:27][%mdl 8192] [#]} (12... Nd7 $11) ({Predecessor:} 12... Nd7 13. O-O Rb8 14. Qc2 g6 15. Rd1 Qb6 16. b3 Bb7 17. Be2 Rfc8 18. Nd2 Ne5 19. cxd5 exd5 {½-½ Fodor,T (2517)-Nayhebaver,M (2533) HUN-chT 2223 2022 (5.6)}) 13. Be4 $1 $18 {[%emt 0:00:54]} ({Less strong is} 13. Rxc4 Nd7 $11) (13. Bxc4 Qxd1+ 14. Kxd1 Nd7 $11) 13... Qb6 $2 {[%emt 0:00:16]} (13... Qxd1+ 14. Kxd1 Rd8+ 15. Kc1 Rd5) 14. Bxa8 {[%emt 0:01:32] White is clearly winning.} Rd8 {[%emt 0:00:05]} 15. Qc2 {[%emt 0:01:54]} Nd7 {[%emt 0:00:06]} 16. O-O {[%emt 0:02:24]} Ba6 17. Rd1 {[%emt 0:00:08] Black did not feel at home in the position after the opening.   Weighted Error Value: White=0.03 (flawless) /Black=0.78.  Loses game:     	---       	Black=1      Missed win:     	---       	---        Mistake:       	---       	Black=1      Inaccurate:     	---       	---        OK:         	White=4     	Black=3      Best:        	White=1     	---        Strong:       	White=1     	---        Brilliant:      	---       	---} 1-0

[Event "13th Rheinland-Pfalz-Open 2023"]
[Site "Neuwied-Engers"]
[Date "2023.06.09"]
[Round "3.5"]
[White "Weber, Samuel"]
[Black "Grzeca, Pascal"]
[Result "1-0"]
[Annotator "TA"]
[ECO "B10"]
[WhiteElo "2296"]
[BlackElo "2089"]
[PlyCount "31"]
[EventDate "2023.01.12"]
[EventType "swiss"]
[EventCountry "GER"]
[SourceTitle "playchess.com"]
[Source "ChessBase"]
[SourceQuality "1"]
[TimeControl "40/5400+30:1800+30"]

{[%evp 9,31,-4,0,-3,57,47,25,6,96,22,59,66,70,63,66,70,263,57,263,262,247,240,700,693]} 1. e4 {[%emt 0:04:21]} c6 {[%emt 0:00:08]} 2. d3 {[%emt 0:00:08]} d5 {[%emt 0:00:09]} 3. Nd2 {[%emt 0:00:05]} e5 {[%emt 0:00:08]} 4. Ngf3 {[%emt 0:00:05]} Bd6 {[%emt 0:00:07]} 5. d4 {[%emt 0:00:05]} exd4 {[%emt 0:00:08]} 6. Bd3 {[%emt 0:00:04] B10: Caro-Kann: 2 d3 and 2 c4.} dxe4 {[%emt 0:08:05]} ({Black should play} 6... Ne7 $11) 7. Nxe4 $14 {[%emt 0:01:49]} Nf6 {[%emt 0:00:57] [#]} 8. O-O $146 {[%emt 0:18:16] [#] Threatens to win with Re1. White has an edge.} ({Predecessor:} 8. Nxf6+ Qxf6 9. O-O Bg4 10. Re1+ Kf8 11. Bg5 Bxf3 12. Qd2 Bf4 13. Bxf4 {1-0 Velikanov,A (2328)-Spalir,J (2390) Budapest FS03 GM 2021 (7)}) 8... O-O {[%emt 0:20:36]} (8... Be7 $11 {remains equal.}) 9. Nfg5 {[%emt 0:06:04]} ({Much worse is} 9. Nxd4 Nxe4 10. Bxe4 Bxh2+ 11. Kxh2 Qh4+ 12. Kg1 Qxe4 $15) (9. Nxf6+ $16 Qxf6 10. Bg5 {[%mdl 64] Deflection}) 9... h6 {[%emt 0:15:21]} (9... Nxe4 {simplifies} 10. Nxe4 Be7 11. Qh5 Nd7) 10. Nxf6+ {[%emt 0:02:43]} Qxf6 {[%emt 0:00:08]} 11. Nh7 {[%emt 0:00:59]} Bxh2+ {[%emt 0:01:13][%mdl 64] Decoy} 12. Kxh2 {[%emt 0:01:12]} Qh4+ {[%emt 0:00:13]} 13. Kg1 {[%emt 0:00:05]} Rd8 {[%emt 0:05:27] [#]} ({Black should try} 13... Re8 $14) 14. Re1 $1 $18 {[%emt 0:04:27] aiming for Re4.} Bg4 {[%emt 0:10:51]} 15. f3 {[%emt 0:00:06]} Bh5 {[%emt 0:00:11]} (15... Be6 16. Re4 Qh5) 16. Re4 {[%emt 0:58:01] Weighted Error Value: White=0.09 (flawless) /Black=0.88} 1-0

[Event "13th Rheinland-Pfalz-Open 2023"]
[Site "Neuwied-Engers"]
[Date "2023.06.09"]
[Round "3.6"]
[White "Barthel, Ansgar"]
[Black "Stillger, Bernhard"]
[Result "0-1"]
[Annotator "TA"]
[ECO "B19"]
[WhiteElo "2081"]
[BlackElo "2289"]
[PlyCount "130"]
[EventDate "2023.01.12"]
[EventType "swiss"]
[EventCountry "GER"]
[SourceTitle "playchess.com"]
[Source "ChessBase"]
[SourceQuality "1"]
[TimeControl "40/5400+30:1800+30"]

{[%evp 31,130,12,8,22,11,0,0,0,0,0,8,0,0,0,0,0,0,0,0,0,12,17,41,26,39,2,39,10,10,10,27,-27,-33,-33,-32,-33,-32,-33,-17,-55,-57,-59,-42,-75,0,-54,-50,-73,-37,-63,-64,-89,-78,-84,-60,-55,-55,-70,-55,-72,-55,-55,-55,-60,-60,-147,-147,-462,-449,-581,-569,-569,-569,-504,-477,-383,-366,-536,-315,-562,-512,-1686,-1691,-1642,-1637,-1630,-1635,-1269,-1245,-1468,-920,-1314,-1139,-1002,-588,-12837,-6329,-29949,-5727,-29984,-29985]} 1. e4 {[%emt 0:00:03]} c6 {[%emt 0:00:04]} 2. d4 {[%emt 0:00:05]} d5 {[%emt 0:00:05]} 3. Nc3 {[%emt 0:00:06]} dxe4 {[%emt 0:00:56]} 4. Nxe4 {[%emt 0:00:09]} Bf5 {[%emt 0:00:14]} 5. Ng3 {[%emt 0:00:06]} Bg6 {[%emt 0:00:04]} 6. h4 {[%emt 0:00:09]} h6 {[%emt 0:00:05]} 7. Nf3 {[%emt 0:00:05]} Nd7 {[%emt 0:00:12]} 8. h5 {[%emt 0:00:08]} Bh7 {[%emt 0:00:04]} 9. Bd3 {[%emt 0:00:06]} Bxd3 {[%emt 0:00:05]} 10. Qxd3 {[%emt 0:00:05]} e6 {[%emt 0:00:10]} 11. Bd2 {[%emt 0:00:16]} Ngf6 {[%emt 0:00:11]} 12. O-O-O {[%emt 0:00:07]} Be7 {[%emt 0:00:07]} 13. Ne4 {[%emt 0:00:12]} Nxe4 {[%emt 0:00:07]} 14. Qxe4 {[%emt 0:00:07]} Nf6 {[%emt 0:00:06]} 15. Qe2 {[%emt 0:00:04]} Qd5 {[%emt 0:00:05]} 16. c4 {[%emt 0:00:05]} Qe4 {[%emt 0:00:05]} 17. Qxe4 {[%emt 0:00:04] B19: Classical Caro-Kann: 4...Bf5 main line.} Nxe4 {[%emt 0:00:02]} 18. Be3 {[%emt 1:37:33]} f5 {[%emt 0:00:34][%cal Of5f4]} 19. Rhe1 {[%emt 0:00:00] The position is equal.} O-O {[%emt 0:00:09] ...f4 is the strong threat.} 20. Re2 {[%emt 0:00:00]} Rad8 {[%emt 0:02:37]} 21. Kc2 {[%emt 0:00:00]} Rfe8 {[%emt 0:01:39]} 22. Bf4 {[%emt 0:00:00]} Bd6 {[%emt 0:03:40] [#]} 23. Be3 $146 {[%emt 0:00:00]} ({Predecessor:} 23. Bxd6 Rxd6 24. Rd3 Nf6 25. c5 Rd5 {½-½ Martello,J (2422)-Barlow,J (2450) ICCF izt 05 email 2008 [4]}) 23... Nf6 {[%emt 0:08:51]} 24. Rh1 $1 {[%emt 0:00:00]} Bb8 {[%emt 0:08:02]} 25. Rh4 {[%emt 0:00:00]} Ng4 {[%emt 0:02:56]} 26. Bd2 {[%emt 0:00:00]} a6 {[%emt 0:08:28]} 27. Bc3 {[%emt 0:00:00]} Bd6 {[%emt 0:16:36]} 28. Rh1 {[%emt 0:00:00]} Kf7 {[%emt 0:03:43]} 29. Ne5+ {[%emt 0:00:00]} Nxe5 {[%emt 0:02:43]} 30. dxe5 {[%emt 0:00:00]} Bc5 {[%emt 0:02:20]} 31. Rd1 {[%emt 0:00:00]} (31. a4 $142) 31... Rxd1 $11 {[%emt 0:01:22]} 32. Kxd1 {[%emt 0:00:00][%mdl 4096] Endgame KRB-KRB} Rd8+ {[%emt 0:00:35]} 33. Kc2 {[%emt 0:00:00]} g6 {[%emt 0:02:09]} 34. hxg6+ {[%emt 0:00:00]} Kxg6 {[%emt 0:00:05]} 35. f3 {[%emt 0:00:00]} f4 {[%emt 0:04:17]} 36. Re1 {[%emt 0:05:59]} Bf2 {[%emt 0:02:58]} 37. Re2 {[%emt 0:00:39]} Bc5 {[%emt 0:07:52]} 38. Re1 $1 {[%emt 0:00:30]} h5 {[%emt 0:02:50]} 39. Rh1 {[%emt 0:00:40]} Bf2 {[%emt 0:06:09]} 40. Bd2 {[%emt 0:02:13]} Be3 {[%emt 0:03:10]} 41. Bc3 {[%emt 0:30:10]} Rd7 {[%emt 0:31:10]} 42. b3 {[%emt 0:00:00]} Rd8 {[%emt 0:00:00]} 43. Ba5 {[%emt 0:00:00]} b6 {[%emt 0:00:00]} 44. Bc3 {[%emt 0:00:00]} Rd7 {[%emt 0:00:00]} 45. a4 {[%emt 0:00:00]} Rd8 {[%emt 0:00:00]} (45... Kh6 $5 {[%cal Rd7g7]} 46. Re1 Rg7 $15) 46. Bb4 {[%emt 0:00:00]} c5 {[%emt 0:00:00]} 47. Bc3 {[%emt 0:00:00]} a5 {[%emt 0:00:00]} 48. Rh3 {[%emt 0:00:00]} (48. Rd1 $1 $15 Rxd1 49. Kxd1) 48... Bd4 $17 {[%emt 0:00:00] [#] White must now prevent ...Bxc3. Black is more active.} 49. Bxd4 {[%emt 0:00:00][%mdl 8192] This move loses the game for White.} (49. Bd2 $17 {is tougher.}) 49... Rxd4 {[%emt 0:00:00] KR-KR} 50. Rh1 {[%emt 0:00:00]} Kg5 {[%emt 0:00:00]} 51. Kc3 {[%emt 0:00:00]} Rd7 {[%emt 0:00:00]} 52. Kc2 {[%emt 0:00:00]} h4 {[%emt 0:00:00]} 53. Kc3 {[%emt 0:00:00]} Rh7 {[%emt 0:00:00]} 54. Rd1 {[%emt 0:00:00]} (54. Kd2 {was worth a try.} Kf5 55. Ke2) 54... Kf5 {[%emt 0:00:00]} 55. Rd8 $2 {[%emt 0:00:00]} (55. Rh1 {only move.} Kxe5 56. Kd3) 55... Kxe5 $19 {[%emt 0:00:14] [#] Threatens to win with ...h3.} 56. Rb8 {[%emt 0:00:03]} (56. Rd2 $142 Rg7 57. Kb2) 56... h3 {[%emt 0:07:47]} 57. gxh3 {[%emt 0:00:06]} Rxh3 {[%emt 0:00:05]} 58. Rxb6 {[%emt 0:00:09]} Rxf3+ {[%emt 0:00:04]} 59. Kd2 {[%emt 0:01:15]} Kf5 {[%emt 0:02:00]} 60. Rb5 {[%emt 0:01:26]} e5 {[%emt 0:00:14]} 61. Rxa5 {[%emt 0:02:47]} Rxb3 {[%emt 0:00:13]} 62. Rxc5 {[%emt 0:00:11]} Ra3 {[%emt 0:01:53]} 63. Ra5 {[%emt 0:01:03]} Ke4 {[%emt 0:01:05]} (63... f3 $142 64. c5 Ke4) 64. c5 {[%emt 0:01:03]} Ra2+ {[%emt 0:00:47]} 65. Ke1 {[%emt 0:02:56]} Ke3 {[%emt 0:01:01] Weighted Error Value: White=0.87/Black=0.30} 0-1

[Event "13th Rheinland-Pfalz-Open 2023"]
[Site "Neuwied-Engers"]
[Date "2023.06.09"]
[Round "3.7"]
[White "Ollenberger, Roland"]
[Black "Begri, Robert"]
[Result "1-0"]
[Annotator "TA"]
[ECO "B14"]
[WhiteElo "2280"]
[BlackElo "2077"]
[PlyCount "51"]
[EventDate "2023.01.12"]
[EventType "swiss"]
[EventCountry "GER"]
[SourceTitle "playchess.com"]
[Source "ChessBase"]
[SourceQuality "1"]
[TimeControl "40/5400+30:1800+30"]

{[%evp 19,51,-21,0,-27,-16,-20,-18,-45,-44,-60,-60,-61,-64,-53,20,28,163,161,202,179,177,176,176,177,225,244,248,240,243,231,432,426,426,401]} 1. Nf3 {[%emt 0:00:03]} Nf6 {[%emt 0:01:29]} 2. c4 {[%emt 0:00:10]} e6 {[%emt 0:00:09]} 3. Nc3 {[%emt 0:00:05]} d5 {[%emt 0:00:22]} 4. e3 {[%emt 0:00:38]} c5 {[%emt 1:30:30]} 5. cxd5 {[%emt 0:01:40]} Nxd5 {[%emt 0:00:00]} 6. Be2 {[%emt 0:01:32]} Nc6 {[%emt 0:00:00]} 7. O-O {[%emt 0:00:08]} Be7 {[%emt 0:00:00]} 8. d4 {[%emt 0:01:03]} cxd4 {[%emt 0:00:00]} 9. exd4 {[%emt 0:00:27]} O-O {[%emt 0:00:00]} 10. Re1 {[%emt 0:00:53]} b6 {[%emt 0:00:00]} 11. Bd3 {[%emt 0:01:56] B14: Caro-Kann: Panov-Botvinnik Attack with 5...e6 and 5...g6.} Bb7 {[%emt 0:00:00]} 12. a3 {[%emt 0:03:26]} Rc8 {[%emt 0:00:00]} 13. Bd2 {[%emt 0:04:30][%cal Bc1d2,Bd2c3,Bc3f6][%mdl 32] The position is equal.} Bf6 {[%emt 0:00:00] [#]} 14. Nxd5 $146 {[%emt 0:17:57]} ({Predecessor:} 14. Be3 Nxc3 15. bxc3 Na5 16. Rc1 Qd5 17. Qe2 Nc4 18. h3 Rfd8 19. Red1 h6 20. Ne1 {0-1 Kim,S (2295)-Odegov,A (2286) Titled Tuesday intern op 03rd May Early blitz 2022 (7)}) 14... Qxd5 {[%emt 0:00:00]} 15. Be4 {[%emt 0:01:10]} Qd7 {[%emt 0:00:00]} 16. Bc3 {[%emt 0:04:59]} Rfd8 {[%emt 0:00:00]} (16... Ne7 $15) 17. Qb1 $1 $11 {[%emt 0:04:17]} h6 {[%emt 0:00:00] [#] Loses the game.} (17... Ne7 $11 {and Black is okay.}) 18. d5 $1 $18 {[%emt 0:03:00][%mdl 512]} exd5 {[%emt 0:00:00] [#]} (18... Bxc3 19. dxc6) 19. Bh7+ {[%emt 0:00:23]} ({Don't take} 19. Bf5 $6 Qd6 $16) 19... Kh8 {[%emt 0:00:00] [#]} 20. Bxf6 {[%emt 0:00:15]} ({Resist} 20. Bf5 $6 Qd6 $16) 20... gxf6 {[%emt 0:00:00]} 21. Bf5 $36 {[%emt 0:00:17][%mdl 2048] Keeping Black busy.} Qc7 {[%emt 0:00:00]} (21... Qd6 $142) 22. Bxc8 {[%emt 0:02:04]} Qxc8 {[%emt 0:00:00]} 23. Qc1 {[%emt 0:00:15]} Kg7 {[%emt 0:00:00]} 24. Qf4 {[%emt 0:00:11] aiming for Nh4.} Rg8 $2 {[%emt 0:00:00]} (24... d4 25. Rac1 d3) 25. Nh4 {[%emt 0:02:21] Hoping for Nf5+.} Kh7 {[%emt 0:00:00]} 26. Qxf6 {[%emt 0:00:37] Weighted Error Value: White=0.06 (flawless) /Black=0.47} 1-0